Workbook

Sheet Inicio
B1: INFORMACIÓN SOBRE ESTA PLANTILLA
B2: Usa este libro de presupuesto del evento para realizar un seguimiento de los gastos e ingresos obtenidos por un evento.
B3: Rellena el nombre del evento y escribe la información en las tablas en las hojas de cálculo Gastos e Ingresos.
B4: El gastos Totales y el ingresos Totales se calculan automáticamente.
B5: El resumen de beneficios y pérdidas y el gráfico se actualizan automáticamente en la hoja de cálculo Resumen.
B6: Nota:
B7: Se facilitan instrucciones adicionales en la columna A de cada hoja de cálculo. Este texto se ocultó a propósito. Para eliminar el texto, selecciona la columna A y, a continuación, ELIMINAR. Para mostrar el texto, selecciona la columna A y, a continuación, cambia el color de fuente.
B8: Para obtener más información sobre las tablas, presiona las teclas MAYÚS y F10 dentro de una tabla, selecciona la opción TABLA y después TEXTO ALTERNATIVO.

Sheet Gastos
A1: Escribe los gastos estimado y real de cada categoría en las respectivas tablas de esta hoja de cálculo. Los gastos totales se calculan automáticamente. Encontrarás instrucciones útiles sobre cómo usar esta hoja de cálculo en las celdas de esta columna. Presiona la flecha abajo para empezar.
A2: Escribe el nombre del evento en la celda de la derecha para personalizar el título de esta y otras hojas de cálculo. | B2: Presupuesto del evento para Nombre del evento
A3: La etiqueta Gastos se encuentra en la celda G3. | G3: Gastos
A4: La etiqueta Estimado está en la celda G4 y la etiqueta Real en H4. | G4: Estimado | H4: Real
A5: La etiqueta gastos Totales se encuentra en la celda de la derecha. Los gastos totales estimado se calculan automáticamente en la celda G5. El gastos Totales real y la barra de datos donde se muestra el gastos Totales real se actualizan automáticamente en la celda H5. La siguiente instrucción se encuentra en la celda A7. | B5: Gastos totales | G5: =SUM(C12,C20,C26,C33,G12,G20,G25) -> $1,145.00 | H5: =SUM(D12,D20,D26,D33,H12,H20,H25) -> $395.00
A7: Escribe los gastos del sitio en la tabla que comienza en la celda de la derecha y los gastos de Refrescos en la tabla que comienza en la celda F7. La siguiente instrucción se encuentra en la celda A14. | B7: Sitio | C7: Estimado | D7: Real | F7: Aperitivos | G7: Estimado | H7: Real
B8: Gastos de sala y vestíbulo | C8: $500.00 | D8: $250.00 | F8: Comida
B9: Personal del sitio | C9: $400.00 | D9: $50.00 | F9: Bebidas
B10: Equipo | F10: Mantelería
B11: Mesas y sillas | F11: Personal y compensaciones
B12: Total | C12: =SUBTOTAL(109,GastosDelSitio[Estimado]) -> $900.00 | D12: =SUBTOTAL(109,GastosDelSitio[Real]) -> $300.00 | F12: Total | G12: =SUBTOTAL(109,GastosDeRefrescos[Estimado]) -> $0.00 | H12: =SUBTOTAL(109,GastosDeRefrescos[Real]) -> $0.00
A14: Escribe los gastos de Decoración en la tabla que comienza en la celda de la derecha y los gastos de programa en la tabla que comienza en la celda F14. La siguiente instrucción se encuentra en la celda A22. | B14: Decoración | C14: Estimado | D14: Real | F14: Programa | G14: Estimado | H14: Real
B15: Flores | C15: $200.00 | D15: $50.00 | F15: Actores
B16: Velas | F16: Oradores
B17: Iluminación | F17: Viajes
B18: Globos | F18: Hotel
B19: Suministros de papel | F19: Otros
B20: Total | C20: =SUBTOTAL(109,GastosDeDecoración[Estimado]) -> $200.00 | D20: =SUBTOTAL(109,GastosDeDecoración[Real]) -> $50.00 | F20: Total | G20: =SUBTOTAL(109,GastosDePrograma[Estimado]) -> $0.00 | H20: =SUBTOTAL(109,GastosDePrograma[Real]) -> $0.00
A22: Escribe los gastos de publicidad en la tabla que comienza en la celda de la derecha y los gastos de premios en la tabla que comienza en la celda F22. La siguiente instrucción se encuentra en la celda A28. | B22: Publicidad | C22: Estimado | D22: Real | F22: Premios | G22: Estimado | H22: Real
B23: Trabajo de gráficos | C23: $45.00 | D23: $45.00 | F23: Cintas, placas o trofeos
B24: Fotocopias e impresiones | F24: Regalos
B25: Gastos de envío | F25: Total | G25: =SUBTOTAL(109,GastosDePremios[Estimado]) -> $0.00 | H25: =SUBTOTAL(109,GastosDePremios[Real]) -> $0.00
B26: Total | C26: =SUBTOTAL(109,GastosDePublicidad[Estimado]) -> $45.00 | D26: =SUBTOTAL(109,GastosDePublicidad[Real]) -> $45.00
A28: Escribe los gastos varios en la tabla que comienza en la celda de la derecha. | B28: Varios | C28: Estimado | D28: Real
B29: Teléfono
B30: Transporte
B31: Materiales de papelería
B32: Servicios de fax
B33: Total | C33: =SUBTOTAL(109,GastosVarios[Estimado]) -> $0.00 | D33: =SUBTOTAL(109,GastosVarios[Real]) -> $0.00

Sheet Ingresos
A1: Escribe los ingresos estimado y real de cada categoría en las respectivas tablas de esta hoja de cálculo. Los ingresos totales se calculan automáticamente. Encontrarás instrucciones útiles sobre cómo usar esta hoja de cálculo en las celdas de esta columna. Presiona la flecha abajo para empezar.
A2: El nombre del evento se actualiza automáticamente en celda de la derecha. | B2: =Gastos!B2 -> Presupuesto del evento para Nombre del evento
A3: La etiqueta Ingresos se encuentra en la celda F3. | F3: Ingresos
A4: La etiqueta Estimado está en la celda F4 y la etiqueta Real en G4. | F4: Estimado | G4: Real
A5: La etiqueta Ingresos totales se encuentra en la celda de la derecha. Los ingresos totales estimado se calculan automáticamente en la celda F5. El Total real y la barra de dato donde se muestra el total real se actualizan automáticamente en la celda G5. | B5: Ingresos totales | F5: =SUM(Admisiones[[#Totals],[Total estimado]],AnunciosEnElPrograma[[#Totals],[Total estimado]],ExpositoresYProveedores[[#Totals],[Total estimado]],VentaDeElemento[[#Totals],[Total estimado]]) -> $1,936.00 | G5: =SUM(Admisiones[[#Totals],[Total real]],AnunciosEnElPrograma[[#Totals],[Total real]],ExpositoresYProveedores[[#Totals],[Total real]],VentaDeElemento[[#Totals],[Total real]]) -> $1,831.00
A6: La etiqueta Entradas está en la celda de la derecha. | B6: Entradas
A7: Escribe el número de entradas estimado y real con tasas de vales en la tabla que empieza en la celda de la derecha. Los ingresos estimado y real de entradas se calculan automáticamente. La siguiente instrucción se encuentra en la celda A12. | B7: Estimado | C7: Real | D7: Tipo | E7: Precio | F7: Total estimado | G7: Total real
B8: 300 | C8: 278 | D8: Adultos a | E8: $5.00 | F8: =B8*E8 -> $1,500.00 | G8: =C8*E8 -> $1,390.00
B9: 197 | C9: 195 | D9: Niños a | E9: $2.00 | F9: =B9*E9 -> $394.00 | G9: =C9*E9 -> $390.00
B10: 42 | C10: 51 | D10: Otros a | E10: $1.00 | F10: $42.00 | G10: $51.00
F11: =SUBTOTAL(109,Admisiones[Total estimado]) -> $1,936.00 | G11: =SUBTOTAL(109,Admisiones[Total real]) -> $1,831.00
A12: La etiqueta Anuncios en el programa se encuentra en la celda de la derecha. | B12: Anuncios del programa
A13: Escribe el número de anuncios en el programa estimado y real en el programa y las tasas de anuncios en la tabla que empieza a partir de la celda de la derecha. Los ingresos de anuncios estimado y real se calculan automáticamente. La siguiente instrucción se encuentra en la celda A18. | B13: Estimado | C13: Real | D13: Tipo | E13: Precio | F13: Total estimado | G13: Total real
D14: Portadas a | F14: =B14*E14 -> $0.00 | G14: =C14*E14 -> $0.00
D15: Medias páginas a | F15: =B15*E15 -> $0.00 | G15: =C15*E15 -> $0.00
D16: Cuartos de página a | F16: $0.00 | G16: $0.00
F17: =SUBTOTAL(109,AnunciosEnElPrograma[Total estimado]) -> $0.00 | G17: =SUBTOTAL(109,AnunciosEnElPrograma[Total real]) -> $0.00
A18: La etiqueta Expositores o Proveedores se encuentra en la celda de la derecha. | B18: Expositores y proveedores
A19: Escribe el número de expositores estimado y real y las tasas de los puestos en la tabla que empieza en la celda de la derecha. Los ingresos estimado y real se calculan automáticamente. La siguiente instrucción se encuentra en la celda A24. | B19: Estimado | C19: Real | D19: Tipo | E19: Precio | F19: Total estimado | G19: Total real
D20: Puestos grandes a | F20: =B20*E20 -> $0.00 | G20: =C20*E20 -> $0.00
D21: Puestos medianos a | F21: =B21*E21 -> $0.00 | G21: =C21*E21 -> $0.00
D22: Puestos pequeños a | F22: $0.00 | G22: $0.00
F23: =SUBTOTAL(109,ExpositoresYProveedores[Total estimado]) -> $0.00 | G23: =SUBTOTAL(109,ExpositoresYProveedores[Total real]) -> $0.00
A24: La etiqueta Venta de productos se encuentra en la celda de la derecha. | B24: Venta de productos
A25: Escribe el número de productos vendidos estimado y real en el programa y las Venta De Elemento en la tabla que empieza a partir de la celda de la derecha. Los ingresos estimado y real se calculan automáticamente. | B25: Estimado | C25: Real | D25: Tipo | E25: Precio | F25: Total estimado | G25: Total real
D26: Productos a | F26: =B26*E26 -> $0.00 | G26: =C26*E26 -> $0.00
D27: Productos a | F27: =B27*E27 -> $0.00 | G27: =C27*E27 -> $0.00
D28: Productos a | F28: $0.00 | G28: $0.00
D29: Productos a | F29: $0.00 | G29: $0.00
F30: =SUBTOTAL(109,VentaDeElemento[Total estimado]) -> $0.00 | G30: =SUBTOTAL(109,VentaDeElemento[Total real]) -> $0.00

Sheet Resumen
A1: El Resumen de beneficios y pérdidas y el gráfico que muestra el ingresos Totales y gastos se actualizan automáticamente en esta hoja de cálculo. Encontrarás instrucciones útiles sobre cómo usar esta hoja de cálculo en las celdas de esta columna. Presiona la flecha abajo para empezar.
A2: El nombre del evento se actualiza automáticamente en celda de la derecha. | B2: =Gastos!B2 -> Presupuesto del evento para Nombre del evento
A3: La etiqueta Resumen de beneficios y pérdidas en la celda C3. La siguiente instrucción se encuentra en la celda A5. | C3: Resumen de beneficios y pérdidas
A5: La tabla Total que empieza por la celda de la derecha se actualiza automáticamente. La siguiente instrucción se encuentra en la celda A9. | B5: Total | C5: Estimado | D5: Real
B6: Ingresos totales | C6: =Ingresos!F5 -> $1,936.00 | D6: =Ingresos!G5 -> $1,831.00
B7: Gastos totales | C7: =Gastos!G5 -> $1,145.00 | D7: =Gastos!H5 -> $395.00
B8: Beneficio total (o pérdidas) | C8: =C6-C7 -> $791.00 | D8: =D6-D7 -> $1,436.00
A9: El gráfico de columnas agrupadas ilustra una comparación de los valores estimado y real de los ingresos totales y los gastos totales está en la celda de la derecha. | B9: El gráfico de columnas agrupadas ilustra una comparación de los valores estimado y real de los ingresos totales y los gastos totales está en esta celda.
